[Event "Early-Titled-Tuesday-Blitz-April-23-2024"]
[Site "Chess.com"]
[Date "2024.04.23"]
[Round "3"]
[White "ChessSwole"]
[Black "GlennTipton"]
[Result "1/2-1/2"]
[WhiteElo "2711"]
[BlackElo "2513"]
[TimeControl "180+1"]
[EndTime "8:30:18 PDT"]
[Termination "Game drawn - insufficient material"]

1. e4 {[%clk 0:03:00.9]} 1... c5 {[%clk 0:02:59.6]} 2. Nf3 {[%clk 0:03:00.9]}
2... d6 {[%clk 0:02:59.9]} 3. d4 {[%clk 0:03:01.1]} 3... cxd4 {[%clk 0:03:00.8]}
4. Nxd4 {[%clk 0:03:02]} 4... Nf6 {[%clk 0:03:01.5]} 5. Nc3 {[%clk 0:03:02.5]}
5... g6 {[%clk 0:03:01.9]} 6. Be3 {[%clk 0:03:02]} 6... Bg7 {[%clk 0:03:02.5]}
7. f3 {[%clk 0:03:02.4]} 7... Nc6 {[%clk 0:03:03.2]} 8. Qd2 {[%clk 0:03:02.7]}
8... O-O {[%clk 0:03:03.9]} 9. O-O-O {[%clk 0:03:02.9]} 9... d5 {[%clk
0:03:04.5]} 10. exd5 {[%clk 0:03:03.1]} 10... Nxd5 {[%clk 0:03:04.8]} 11. Nxc6
{[%clk 0:03:03.5]} 11... bxc6 {[%clk 0:03:05.7]} 12. Bd4 {[%clk 0:03:04]} 12...
Nxc3 {[%clk 0:03:06.1]} 13. Qxc3 {[%clk 0:03:02.1]} 13... Bh6+ {[%clk
0:03:06.4]} 14. Be3 {[%clk 0:03:02.8]} 14... Bxe3+ {[%clk 0:03:06.8]} 15. Qxe3
{[%clk 0:03:03.7]} 15... Qb6 {[%clk 0:03:07.5]} 16. Re1 {[%clk 0:03:03.3]} 16...
Be6 {[%clk 0:03:00.4]} 17. h4 {[%clk 0:02:37]} 17... Rab8 {[%clk 0:02:49.4]} 18.
b3 {[%clk 0:02:33.7]} 18... Rfd8 {[%clk 0:02:43.5]} 19. h5 {[%clk 0:02:20.4]}
19... Qxe3+ {[%clk 0:02:36.3]} 20. Rxe3 {[%clk 0:02:21.3]} 20... Kg7 {[%clk
0:02:35]} 21. Rc3 {[%clk 0:02:14.6]} 21... Rd6 {[%clk 0:02:29.9]} 22. Bd3 {[%clk
0:02:11.5]} 22... Bf5 {[%clk 0:02:20.7]} 23. Bxf5 {[%clk 0:01:41.4]} 23... gxf5
{[%clk 0:02:20.5]} 24. Rh4 {[%clk 0:01:41.8]} 24... e5 {[%clk 0:02:00.7]} 25.
Rc5 {[%clk 0:01:37.3]} 25... Kf6 {[%clk 0:01:58.4]} 26. Ra4 {[%clk 0:01:37.3]}
26... Rb7 {[%clk 0:01:57]} 27. Ra6 {[%clk 0:01:37.3]} 27... Rc7 {[%clk 0:01:56]}
28. b4 {[%clk 0:01:34.7]} 28... Ke6 {[%clk 0:01:53.2]} 29. Rc4 {[%clk
0:00:54.7]} 29... f4 {[%clk 0:01:41.3]} 30. a4 {[%clk 0:00:40.3]} 30... f5
{[%clk 0:01:35.7]} 31. h6 {[%clk 0:00:29.3]} 31... c5 {[%clk 0:01:09.1]} 32. Ra5
{[%clk 0:00:23]} 32... Rdc6 {[%clk 0:01:04]} 33. Rcxc5 {[%clk 0:00:22.5]} 33...
Rxc5 {[%clk 0:01:04.1]} 34. bxc5 {[%clk 0:00:23.3]} 34... Kd5 {[%clk 0:00:59.3]}
35. Kd2 {[%clk 0:00:22.6]} 35... e4 {[%clk 0:00:57.8]} 36. c6+ {[%clk
0:00:18.1]} 36... Ke6 {[%clk 0:00:50.2]} 37. Ra6 {[%clk 0:00:18.2]} 37... Kd5
{[%clk 0:00:39.8]} 38. c3 {[%clk 0:00:15.9]} 38... Rxc6 {[%clk 0:00:33.8]} 39.
Ra5+ {[%clk 0:00:14.4]} 39... Kc4 {[%clk 0:00:24.2]} 40. Rxf5 {[%clk 0:00:14.1]}
40... Rd6+ {[%clk 0:00:20.7]} 41. Ke2 {[%clk 0:00:13.9]} 41... exf3+ {[%clk
0:00:20.9]} 42. Kxf3 {[%clk 0:00:13]} 42... Rxh6 {[%clk 0:00:21.1]} 43. Rxf4+
{[%clk 0:00:11.9]} 43... Kxc3 {[%clk 0:00:21.5]} 44. g4 {[%clk 0:00:12.4]} 44...
a5 {[%clk 0:00:18.8]} 45. Rf5 {[%clk 0:00:11.4]} 45... Kb4 {[%clk 0:00:18.8]}
46. Rf4+ {[%clk 0:00:10.5]} 46... Kb3 {[%clk 0:00:19.3]} 47. g5 {[%clk
0:00:10.7]} 47... Rh3+ {[%clk 0:00:17.7]} 48. Kg4 {[%clk 0:00:10.6]} 48... Rh1
{[%clk 0:00:17.7]} 49. Kf5 {[%clk 0:00:10.7]} 49... Ra1 {[%clk 0:00:14.1]} 50.
Kf6 {[%clk 0:00:10.7]} 50... Rg1 {[%clk 0:00:14]} 51. Rf5 {[%clk 0:00:07.6]}
51... Kxa4 {[%clk 0:00:13.8]} 52. Kg7 {[%clk 0:00:08.3]} 52... Rh1 {[%clk
0:00:13.7]} 53. Rf8 {[%clk 0:00:03.9]} 53... Ka3 {[%clk 0:00:13.3]} 54. Rh8
{[%clk 0:00:04.4]} 54... a4 {[%clk 0:00:13.4]} 55. Rxh7 {[%clk 0:00:04.7]} 55...
Rg1 {[%clk 0:00:13.8]} 56. g6 {[%clk 0:00:04.7]} 56... Kb2 {[%clk 0:00:14.2]}
57. Rh2+ {[%clk 0:00:04]} 57... Kc1 {[%clk 0:00:14.5]} 58. Kf7 {[%clk
0:00:03.7]} 58... a3 {[%clk 0:00:14.4]} 59. g7 {[%clk 0:00:04.2]} 59... Rf1+
{[%clk 0:00:13.1]} 60. Ke7 {[%clk 0:00:03.9]} 60... Re1+ {[%clk 0:00:13]} 61.
Kf8 {[%clk 0:00:04.3]} 61... Rf1+ {[%clk 0:00:13]} 62. Kg8 {[%clk 0:00:04.3]}
62... Kb1 {[%clk 0:00:11.9]} 63. Kh8 {[%clk 0:00:04.6]} 63... Rg1 {[%clk
0:00:07.1]} 64. g8=Q {[%clk 0:00:04.8]} 64... Rxg8+ {[%clk 0:00:06.9]} 65. Kxg8
{[%clk 0:00:05.7]} 65... a2 {[%clk 0:00:07.6]} 66. Rxa2 {[%clk 0:00:06.1]} 66...
Kxa2 {[%clk 0:00:08.5]} 1/2-1/2

[Event "Early-Titled-Tuesday-Blitz-April-23-2024"]
[Site "Chess.com"]
[Date "2024.04.23"]
[Round "3"]
[White "Eagle_2019"]
[Black "Maxfan2008"]
[Result "1-0"]
[WhiteElo "2858"]
[BlackElo "2586"]
[TimeControl "180+1"]
[EndTime "8:30:29 PDT"]
[Termination "Eagle_2019 won by checkmate"]

1. e4 {[%clk 0:02:59.3]} 1... c5 {[%clk 0:02:59.9]} 2. Nf3 {[%clk 0:02:59.2]}
2... e6 {[%clk 0:02:58.4]} 3. b3 {[%clk 0:02:59]} 3... a6 {[%clk 0:02:49.7]} 4.
Bb2 {[%clk 0:02:55.8]} 4... Nc6 {[%clk 0:02:48.4]} 5. d4 {[%clk 0:02:49.7]} 5...
cxd4 {[%clk 0:02:48.3]} 6. Nxd4 {[%clk 0:02:50.6]} 6... Nxd4 {[%clk 0:02:47.4]}
7. Qxd4 {[%clk 0:02:48.5]} 7... Ne7 {[%clk 0:02:35.5]} 8. Nd2 {[%clk 0:02:36.7]}
8... Nc6 {[%clk 0:02:35.5]} 9. Qe3 {[%clk 0:02:36.6]} 9... d5 {[%clk 0:02:32.9]}
10. exd5 {[%clk 0:02:35]} 10... Nb4 {[%clk 0:02:31.7]} 11. O-O-O {[%clk
0:02:31.3]} 11... Nxd5 {[%clk 0:02:31.8]} 12. Qg3 {[%clk 0:02:31.3]} 12... Qc7
{[%clk 0:02:24.8]} 13. Qxc7 {[%clk 0:02:16]} 13... Nxc7 {[%clk 0:02:25.7]} 14.
Nc4 {[%clk 0:02:16.2]} 14... Nd5 {[%clk 0:02:22.7]} 15. g3 {[%clk 0:02:01.8]}
15... b5 {[%clk 0:02:02.1]} 16. Na5 {[%clk 0:01:27.5]} 16... Bb4 {[%clk
0:01:44.9]} 17. Nc6 {[%clk 0:01:25.2]} 17... Bb7 {[%clk 0:01:42.6]} 18. Nxb4
{[%clk 0:00:59.8]} 18... Nxb4 {[%clk 0:01:43.5]} 19. Rg1 {[%clk 0:00:59.3]}
19... Rc8 {[%clk 0:01:41]} 20. Rd2 {[%clk 0:00:56.5]} 20... Nxa2+ {[%clk
0:01:25.5]} 21. Kb1 {[%clk 0:00:41.7]} 21... Nc3+ {[%clk 0:01:26.4]} 22. Ka1
{[%clk 0:00:26.8]} 22... Bd5 {[%clk 0:01:09.8]} 23. Rd4 {[%clk 0:00:13.4]} 23...
O-O {[%clk 0:01:05.8]} 24. Bd3 {[%clk 0:00:10.9]} 24... e5 {[%clk 0:01:01]} 25.
Rg4 {[%clk 0:00:08.6]} 25... f5 {[%clk 0:00:51.7]} 26. Rh4 {[%clk 0:00:05.8]}
26... e4 {[%clk 0:00:49.7]} 27. Bf1 {[%clk 0:00:05.6]} 27... Nd1 {[%clk
0:00:39]} 28. Kb1 {[%clk 0:00:02.8]} 28... Nxf2 {[%clk 0:00:32.3]} 29. Be2
{[%clk 0:00:02.9]} 29... e3 {[%clk 0:00:28.7]} 30. Bd4 {[%clk 0:00:03]} 30...
Ne4 {[%clk 0:00:27.6]} 31. Kb2 {[%clk 0:00:02.8]} 31... Rfe8 {[%clk 0:00:26.5]}
32. Re1 {[%clk 0:00:02.3]} 32... Nd2 {[%clk 0:00:17.3]} 33. Bh5 {[%clk
0:00:02.5]} 33... g6 {[%clk 0:00:17]} 34. Bd1 {[%clk 0:00:02.6]} 34... Nf3
{[%clk 0:00:11.2]} 35. Bxf3 {[%clk 0:00:02.6]} 35... Bxf3 {[%clk 0:00:12.1]} 36.
Rxe3 {[%clk 0:00:02.8]} 36... Be4 {[%clk 0:00:12.8]} 37. Re2 {[%clk 0:00:02.8]}
37... Rc6 {[%clk 0:00:11.6]} 38. c3 {[%clk 0:00:03]} 38... Rec8 {[%clk 0:00:12]}
39. b4 {[%clk 0:00:03.3]} 39... Re6 {[%clk 0:00:08.8]} 40. g4 {[%clk 0:00:03.2]}
40... f4 {[%clk 0:00:06.9]} 41. g5 {[%clk 0:00:03.8]} 41... Rf8 {[%clk
0:00:05.5]} 42. Bf6 {[%clk 0:00:04]} 42... Kf7 {[%clk 0:00:02.2]} 43. Rxf4
{[%clk 0:00:03.7]} 43... Bf5 {[%clk 0:00:03.1]} 44. Rd2 {[%clk 0:00:04.1]} 44...
Rfe8 {[%clk 0:00:03]} 45. Rh4 {[%clk 0:00:04.2]} 45... Kg8 {[%clk 0:00:03]} 46.
Ka3 {[%clk 0:00:03]} 46... Rc6 {[%clk 0:00:02.2]} 47. Kb2 {[%clk 0:00:02.7]}
47... h5 {[%clk 0:00:02.7]} 48. Rhd4 {[%clk 0:00:02.3]} 48... Rc4 {[%clk
0:00:02.3]} 49. Rxc4 {[%clk 0:00:02.5]} 49... bxc4 {[%clk 0:00:03.2]} 50. Rd6
{[%clk 0:00:02.5]} 50... Re2+ {[%clk 0:00:03.3]} 51. Ka3 {[%clk 0:00:02.8]}
51... Bd3 {[%clk 0:00:04.2]} 52. Rxa6 {[%clk 0:00:02.8]} 52... Rxh2 {[%clk
0:00:04.5]} 53. b5 {[%clk 0:00:03.2]} 53... Bb1 {[%clk 0:00:04.2]} 54. Kb4
{[%clk 0:00:03.5]} 54... h4 {[%clk 0:00:03.9]} 55. b6 {[%clk 0:00:03.6]} 55...
Rb2+ {[%clk 0:00:04.3]} 56. Kc5 {[%clk 0:00:03.9]} 56... h3 {[%clk 0:00:04.3]}
57. Ra8+ {[%clk 0:00:04.2]} 57... Kf7 {[%clk 0:00:03.6]} 58. Rh8 {[%clk
0:00:05.1]} 58... Bf5 {[%clk 0:00:02.8]} 59. b7 {[%clk 0:00:05.4]} 59... h2
{[%clk 0:00:02.5]} 60. Rh7+ {[%clk 0:00:05.7]} 60... Ke6 {[%clk 0:00:02.4]} 61.
Re7# {[%clk 0:00:05.4]} 1-0

[Event "Early-Titled-Tuesday-Blitz-April-23-2024"]
[Site "Chess.com"]
[Date "2024.04.23"]
[Round "3"]
[White "Aradhya2000"]
[Black "yaguigor"]
[Result "1-0"]
[WhiteElo "2854"]
[BlackElo "2606"]
[TimeControl "180+1"]
[EndTime "8:30:36 PDT"]
[Termination "Aradhya2000 won by resignation"]

1. d4 {[%clk 0:03:00.9]} 1... d5 {[%clk 0:02:58.9]} 2. c4 {[%clk 0:03:01.1]}
2... c6 {[%clk 0:02:58.6]} 3. Nf3 {[%clk 0:03:00.7]} 3... Nf6 {[%clk 0:02:59.1]}
4. Nc3 {[%clk 0:03:01]} 4... e6 {[%clk 0:02:59.2]} 5. e3 {[%clk 0:03:00.8]} 5...
Nbd7 {[%clk 0:02:58.6]} 6. Bd3 {[%clk 0:03:00.9]} 6... dxc4 {[%clk 0:02:58.1]}
7. Bxc4 {[%clk 0:03:01.2]} 7... b5 {[%clk 0:02:58.9]} 8. Bb3 {[%clk 0:03:01.6]}
8... b4 {[%clk 0:02:56.1]} 9. Ne2 {[%clk 0:03:00.1]} 9... c5 {[%clk 0:02:54.4]}
10. O-O {[%clk 0:02:58.5]} 10... Bb7 {[%clk 0:02:53.5]} 11. Nf4 {[%clk
0:02:58.7]} 11... Bd6 {[%clk 0:02:49.8]} 12. Ng5 {[%clk 0:02:58.5]} 12... Bxf4
{[%clk 0:02:46]} 13. exf4 {[%clk 0:02:58.5]} 13... O-O {[%clk 0:02:40.9]} 14.
Be3 {[%clk 0:02:41.1]} 14... h6 {[%clk 0:02:28.9]} 15. Nxe6 {[%clk 0:02:30.2]}
15... fxe6 {[%clk 0:02:26.1]} 16. Bxe6+ {[%clk 0:02:30.4]} 16... Kh8 {[%clk
0:02:26.7]} 17. dxc5 {[%clk 0:02:30.9]} 17... Qc7 {[%clk 0:02:15.7]} 18. Qd6
{[%clk 0:02:28.9]} 18... Qxd6 {[%clk 0:02:10]} 19. cxd6 {[%clk 0:02:29.1]} 19...
Bd5 {[%clk 0:02:10.7]} 20. Bh3 {[%clk 0:02:09.8]} 20... Rad8 {[%clk 0:02:01.1]}
21. a3 {[%clk 0:02:09]} 21... a5 {[%clk 0:01:58.5]} 22. axb4 {[%clk 0:02:03.5]}
22... axb4 {[%clk 0:01:59.4]} 23. Ra7 {[%clk 0:02:02.9]} 23... Rfe8 {[%clk
0:01:53.4]} 24. Rc1 {[%clk 0:01:51.9]} 24... h5 {[%clk 0:01:49.3]} 25. Rcc7
{[%clk 0:01:47.2]} 25... Be6 {[%clk 0:01:45.2]} 26. f5 {[%clk 0:01:20]} 26...
Bg8 {[%clk 0:01:43.4]} 27. g3 {[%clk 0:01:16.6]} 27... Bd5 {[%clk 0:01:40.7]}
28. Bg2 {[%clk 0:01:10.4]} 28... Bxg2 {[%clk 0:01:39.5]} 29. Kxg2 {[%clk
0:01:11.3]} 29... Re5 {[%clk 0:01:34.6]} 30. Rab7 {[%clk 0:00:55.4]} 30... Rxf5
{[%clk 0:01:30.8]} 31. Rxb4 {[%clk 0:00:55.1]} 31... Nd5 {[%clk 0:01:30.2]} 32.
Rd4 {[%clk 0:00:51]} 32... N7f6 {[%clk 0:01:11.2]} 33. Rc6 {[%clk 0:00:38.9]}
33... Nxe3+ {[%clk 0:01:05.4]} 34. fxe3 {[%clk 0:00:39.2]} 34... Re5 {[%clk
0:01:05.1]} 35. Kf3 {[%clk 0:00:38.2]} 35... Kh7 {[%clk 0:01:01.1]} 36. b4
{[%clk 0:00:37.1]} 36... Kg6 {[%clk 0:01:00]} 37. Rc5 {[%clk 0:00:34]} 37... Re6
{[%clk 0:00:58.7]} 38. Rc6 {[%clk 0:00:31.7]} 38... Rd7 {[%clk 0:00:53.4]} 39.
b5 {[%clk 0:00:24.4]} 39... Ne8 {[%clk 0:00:39.2]} 40. b6 {[%clk 0:00:23.3]}
40... Rexd6 {[%clk 0:00:26.5]} 41. b7 {[%clk 0:00:13.2]} 41... Rf7+ {[%clk
0:00:22.8]} 42. Ke2 {[%clk 0:00:12.3]} 42... Rxb7 {[%clk 0:00:21.9]} 43. Rcxd6+
{[%clk 0:00:12.2]} 43... Nxd6 {[%clk 0:00:22.3]} 44. Rxd6+ {[%clk 0:00:13.1]}
44... Kf5 {[%clk 0:00:21.3]} 45. Kf3 {[%clk 0:00:13.4]} 45... g5 {[%clk
0:00:20.2]} 46. Rd5+ {[%clk 0:00:12.9]} 46... Kf6 {[%clk 0:00:19.7]} 47. h4
{[%clk 0:00:13]} 47... gxh4 {[%clk 0:00:18.4]} 48. gxh4 {[%clk 0:00:13.4]} 48...
Rf7 {[%clk 0:00:14.8]} 49. Rxh5 {[%clk 0:00:11.1]} 49... Kg6+ {[%clk 0:00:14.2]}
50. Kg4 {[%clk 0:00:11.4]} 50... Re7 {[%clk 0:00:14]} 51. Rg5+ {[%clk
0:00:11.9]} 51... Kf6 {[%clk 0:00:13.9]} 52. Kf4 {[%clk 0:00:12]} 52... Ra7
{[%clk 0:00:13.7]} 53. e4 {[%clk 0:00:11.9]} 53... Ra1 {[%clk 0:00:13.7]} 54.
e5+ {[%clk 0:00:10.5]} 54... Kf7 {[%clk 0:00:13.9]} 55. Rf5+ {[%clk 0:00:08.3]}
55... Kg7 {[%clk 0:00:12.5]} 56. Rf6 {[%clk 0:00:08.1]} 56... Rf1+ {[%clk
0:00:11.3]} 57. Kg5 {[%clk 0:00:08.3]} 57... Rg1+ {[%clk 0:00:11.7]} 58. Kf5
{[%clk 0:00:08.6]} 58... Rf1+ {[%clk 0:00:11.9]} 59. Ke6 {[%clk 0:00:08.8]}
59... Ra1 {[%clk 0:00:11.5]} 60. Rf7+ {[%clk 0:00:07.3]} 60... Kg6 {[%clk
0:00:11]} 61. h5+ {[%clk 0:00:07.7]} 61... Kxh5 {[%clk 0:00:11]} 62. Rg7 {[%clk
0:00:07.2]} 62... Ra6+ {[%clk 0:00:09]} 63. Kf5 {[%clk 0:00:06.5]} 63... Kh6
{[%clk 0:00:08.7]} 64. Rg1 {[%clk 0:00:05.9]} 64... Ra2 {[%clk 0:00:07.2]} 65.
e6 {[%clk 0:00:06.2]} 65... Rf2+ {[%clk 0:00:06.4]} 66. Ke5 {[%clk 0:00:06.4]}
66... Re2+ {[%clk 0:00:06]} 67. Kd6 {[%clk 0:00:06.7]} 67... Rd2+ {[%clk
0:00:06]} 68. Ke7 {[%clk 0:00:07.2]} 68... Ra2 {[%clk 0:00:06.2]} 69. Kf7 {[%clk
0:00:07.3]} 69... Rf2+ {[%clk 0:00:06.2]} 70. Ke8 {[%clk 0:00:07.5]} 70... Re2
{[%clk 0:00:06.3]} 71. e7 {[%clk 0:00:07.8]} 1-0

[Event "Early-Titled-Tuesday-Blitz-April-23-2024"]
[Site "Chess.com"]
[Date "2024.04.23"]
[Round "3"]
[White "CrgKrishna"]
[Black "artin10862"]
[Result "0-1"]
[WhiteElo "2712"]
[BlackElo "2934"]
[TimeControl "180+1"]
[EndTime "8:30:39 PDT"]
[Termination "artin10862 won by resignation"]

1. d4 {[%clk 0:03:00.9]} 1... Nf6 {[%clk 0:02:58.3]} 2. c4 {[%clk 0:03:01.1]}
2... e6 {[%clk 0:02:57.6]} 3. g3 {[%clk 0:03:01.2]} 3... Bb4+ {[%clk 0:02:41.5]}
4. Nd2 {[%clk 0:02:59.4]} 4... d5 {[%clk 0:02:40.9]} 5. Bg2 {[%clk 0:02:58.9]}
5... O-O {[%clk 0:02:40.9]} 6. Nf3 {[%clk 0:02:57.9]} 6... b6 {[%clk 0:02:39.9]}
7. O-O {[%clk 0:02:57.2]} 7... Bb7 {[%clk 0:02:39.9]} 8. a3 {[%clk 0:02:56.9]}
8... Be7 {[%clk 0:02:39.5]} 9. cxd5 {[%clk 0:02:55.4]} 9... exd5 {[%clk
0:02:29]} 10. b4 {[%clk 0:02:54.9]} 10... Nbd7 {[%clk 0:02:23.8]} 11. Bb2 {[%clk
0:02:43]} 11... b5 {[%clk 0:02:14.1]} 12. Nb3 {[%clk 0:02:38.5]} 12... Nb6
{[%clk 0:02:13.7]} 13. Na5 {[%clk 0:02:37.1]} 13... Bc8 {[%clk 0:02:07.5]} 14.
Ne5 {[%clk 0:02:33.9]} 14... Bd6 {[%clk 0:02:06.4]} 15. Qd3 {[%clk 0:02:18.5]}
15... a6 {[%clk 0:02:04.3]} 16. Bc1 {[%clk 0:02:02.4]} 16... g6 {[%clk
0:01:56.3]} 17. Bg5 {[%clk 0:01:56.6]} 17... Bf5 {[%clk 0:01:52]} 18. Qb3 {[%clk
0:01:48.7]} 18... Kg7 {[%clk 0:01:42.3]} 19. g4 {[%clk 0:01:40.6]} 19... Be6
{[%clk 0:01:35.5]} 20. Qf3 {[%clk 0:01:39.5]} 20... h6 {[%clk 0:01:13.5]} 21.
Nac6 {[%clk 0:01:36.6]} 21... hxg5 {[%clk 0:01:13.6]} 22. Nxd8 {[%clk
0:01:36.6]} 22... Raxd8 {[%clk 0:01:14.5]} 23. h3 {[%clk 0:01:35.3]} 23... Nc4
{[%clk 0:01:12.5]} 24. Nxc4 {[%clk 0:01:31]} 24... bxc4 {[%clk 0:01:12.5]} 25.
Qe3 {[%clk 0:01:25.9]} 25... Bf4 {[%clk 0:01:08.7]} 26. Qc3 {[%clk 0:01:26]}
26... Rb8 {[%clk 0:01:08.3]} 27. e3 {[%clk 0:01:25.1]} 27... Bd6 {[%clk
0:01:07.8]} 28. f3 {[%clk 0:01:25]} 28... c6 {[%clk 0:01:05.1]} 29. e4 {[%clk
0:01:22.7]} 29... Bf4 {[%clk 0:01:04.7]} 30. a4 {[%clk 0:01:19.2]} 30... Rb7
{[%clk 0:01:03.5]} 31. Rfb1 {[%clk 0:01:18.1]} 31... Rfb8 {[%clk 0:01:03]} 32.
Rb2 {[%clk 0:01:18.7]} 32... Ne8 {[%clk 0:00:56.8]} 33. Rab1 {[%clk 0:01:09]}
33... Nd6 {[%clk 0:00:55.4]} 34. e5 {[%clk 0:01:09.1]} 34... Ne8 {[%clk
0:00:55.4]} 35. Bf1 {[%clk 0:01:03.5]} 35... Nc7 {[%clk 0:00:54.4]} 36. Kg2
{[%clk 0:01:03.2]} 36... Bd7 {[%clk 0:00:51.3]} 37. Be2 {[%clk 0:00:56]} 37...
Ne6 {[%clk 0:00:48.7]} 38. Rh1 {[%clk 0:00:54.1]} 38... Rh8 {[%clk 0:00:30.2]}
39. Bd1 {[%clk 0:00:47.3]} 39... Rhb8 {[%clk 0:00:26.7]} 40. Bc2 {[%clk
0:00:34.9]} 40... a5 {[%clk 0:00:25.6]} 41. Rhb1 {[%clk 0:00:34.2]} 41... axb4
{[%clk 0:00:24.3]} 42. Qe1 {[%clk 0:00:29.1]} 42... b3 {[%clk 0:00:22]} 43. a5
{[%clk 0:00:21.5]} 43... Nxd4 {[%clk 0:00:17.4]} 44. a6 {[%clk 0:00:20.8]} 44...
Ra7 {[%clk 0:00:17.2]} 45. Qf2 {[%clk 0:00:20]} 45... c5 {[%clk 0:00:17.5]} 46.
Bd1 {[%clk 0:00:19.1]} 46... Rxa6 {[%clk 0:00:17.3]} 47. h4 {[%clk 0:00:19.3]}
47... gxh4 {[%clk 0:00:16.3]} 48. Qxh4 {[%clk 0:00:19]} 48... Bxe5 {[%clk
0:00:16.6]} 49. Qe7 {[%clk 0:00:19]} 49... Be6 {[%clk 0:00:16.7]} 50. Qxc5
{[%clk 0:00:19.3]} 50... Rc6 {[%clk 0:00:13.8]} 51. Qa7 {[%clk 0:00:19]} 51...
c3 {[%clk 0:00:12.9]} 52. Bxb3 {[%clk 0:00:17.5]} 52... cxb2 {[%clk 0:00:11.8]}
53. Ba4 {[%clk 0:00:18.2]} 53... Rc1 {[%clk 0:00:11.2]} 54. f4 {[%clk
0:00:16.2]} 54... Bxf4 {[%clk 0:00:10.7]} 55. Qxd4+ {[%clk 0:00:15.8]} 55... Kg8
{[%clk 0:00:08.6]} 56. Rxb2 {[%clk 0:00:16.5]} 56... Rxb2+ {[%clk 0:00:06.2]}
57. Qxb2 {[%clk 0:00:17.4]} 57... Rc8 {[%clk 0:00:05.7]} 58. Qd4 {[%clk
0:00:17.4]} 58... Bh6 {[%clk 0:00:04.6]} 59. Kf3 {[%clk 0:00:16.4]} 59... Rc4
{[%clk 0:00:04.7]} 60. Qa7 {[%clk 0:00:16]} 60... Bxg4+ {[%clk 0:00:05.1]} 61.
Kf2 {[%clk 0:00:16.2]} 61... Be6 {[%clk 0:00:05.5]} 62. Qb8+ {[%clk 0:00:15.6]}
62... Bf8 {[%clk 0:00:05.2]} 63. Bb3 {[%clk 0:00:16]} 63... Re4 {[%clk
0:00:05.2]} 64. Qd8 {[%clk 0:00:14.7]} 64... Rb4 {[%clk 0:00:05.2]} 65. Bxd5
{[%clk 0:00:14.5]} 65... Rd4 {[%clk 0:00:05]} 66. Qf6 {[%clk 0:00:14.2]} 66...
Rxd5 {[%clk 0:00:04.9]} 67. Qc3 {[%clk 0:00:14.2]} 67... Rf5+ {[%clk 0:00:05.1]}
68. Ke2 {[%clk 0:00:14.2]} 68... Bc5 {[%clk 0:00:05.2]} 69. Qd3 {[%clk
0:00:13.6]} 69... Re5+ {[%clk 0:00:05.5]} 70. Kf1 {[%clk 0:00:12.8]} 70... Rf5+
{[%clk 0:00:05.4]} 71. Kg2 {[%clk 0:00:12.9]} 71... Be7 {[%clk 0:00:05.9]} 0-1